bitfinex-derivatives/quotes_ETHF0:USTF0_20250817
["timestamp","ask_amount","ask_price","bid_price","bid_amount"]
[1755433590361,0.2513,4544.3,4543.7,20.89455]
[1755433590561,1.4342,4543.8,4543.6,3.2078]
[1755433590761,1.4342,4543.8,4543.7,20.092]
[1755433591059,1.4342,4543.7,4543.6,3.2078]
[1755433591268,0.8176,4543.3,4543.2,20.2576]
[1755433591567,1.4342,4543.3,4543.2,20.6162]
[1755433592168,1.4342,4543.3,4543.2,21.2696]
[1755433600671,1.4342,4543.3,4543.2,21.206]
[1755433601167,1.4342,4543.3,4543.2,1.115]
[1755433601374,1.4342,4543.3,4543.2,20.2566]
[1755433601873,1.4342,4543.3,4543.2,20.091]
[1755433602668,1.4342,4543.3,4543.2,21.1058]
[1755433602874,1.4342,4543.3,4543.2,21.2689]
[1755433603272,0.8595,4543.6,4543.2,21.2689]
[1755433603573,1.4342,4543.6,4543.5,1.1779]
[1755433604975,1.4342,4543.6,4543.5,1.1152]
[1755433605373,0.826,4543.6,4543.5,0.4012]
[1755433605576,0.2513,4543.9,4543.8,0.5016]
[1755433605874,0.2513,4543.9,4543.8,21.2679]
[1755433606574,0.8595,4543.9,4543.8,21.2679]
[1755433606776,1.1906,4543.9,4543.8,21.2679]
[1755433606972,1.4342,4543.9,4543.8,21.2679]
[1755433609977,0.2455,4544.0,4543.9,0.3142]
[1755433610276,0.5888,4544.4,4544.3,0.5144]
[1755433610477,1.1621547,4544.4,4544.3,1.2036]
[1755433610674,1.1621547,4544.4,4544.3,1.1409]
[1755433610879,2.0074547,4544.4,4544.3,1.1409]
[1755433611071,2.0074547,4544.4,4544.3,1.0406]
[1755433613477,2.0074547,4544.4,4544.3,0.1732]
[1755433614879,1.1621547,4544.4,4544.1,0.375]
[1755433615079,0.5888,4544.2,4544.1,0.5482]
[1755433615383,1.4341,4544.2,4544.1,0.5482]
[1755433616074,0.5888,4543.7,4543.6,24.4347]
[1755433616275,1.4341,4543.7,4543.6,24.4974]
[1755433617678,0.4182,4543.8,4543.7,0.6265]
[1755433617879,1.4341,4543.8,4543.7,1.2036]
[1755433621486,1.4341,4543.8,4543.7,1.0406]
[1755433622082,1.4341,4543.8,4543.7,1.1033]
[1755433622281,1.4341,4543.8,4543.7,1.2036]
[1755433625284,0.2455,4544.8,4543.8,0.0627]
[1755433625589,4.3964,4545.4,4545.3,0.5144]
[1755433625784,4.3964,4545.4,4545.3,21.2866]
[1755433626385,4.6419,4545.4,4545.3,21.2866]
[1755433626784,1.4341,4545.4,4545.3,21.2866]
[1755433627180,0.8453,4545.3,4544.9,20.082]
[1755433627384,1.4341,4545.0,4544.9,21.2229]
[1755433627582,1.4341,4545.0,4544.9,20.9714]
[1755433627783,1.4341,4545.0,4544.9,20.8711]
[1755433628785,1.4341,4545.0,4544.9,0.7891]
[1755433630383,1.4341,4545.0,4544.9,1.0406]
[1755433630791,0.5888,4544.7,4544.1,3.2078]
[1755433630985,0.2592,4544.3,4544.2,1.1409]
[1755433631290,1.4341,4544.3,4544.2,1.2036]
[1755433633683,1.4341,4544.3,4544.2,0.1732]
[1755433634595,1.4341,4544.3,4544.2,1.1409]
[1755433634788,1.4341,4544.3,4544.2,1.2036]
[1755433639089,1.0812,4544.3,4544.2,1.2036]
[1755433639290,1.4555,4544.3,4544.2,1.2036]
[1755433639890,0.8729,4545.0,4544.3,0.6669]
[1755433640089,0.5629,4544.5,4544.4,20.5984]
[1755433640289,1.4358,4544.5,4544.4,21.2653]
[1755433642886,0.2423,4544.5,4544.4,21.2653]
[1755433643086,1.0615,4545.1,4545.0,0.5214]
[1755433643287,1.0615,4545.1,4545.0,21.2633]
[1755433643483,0.6166,4545.6,4545.1,0.362]
[1755433643688,1.4358,4545.6,4545.5,1.1883]
[1755433646094,0.0219,4546.4,4545.5,1.1883]
[1755433646095,0.6166,4546.4,4545.5,1.1883]
[1755433646295,1.0378,4545.7,4545.6,1.1883]
[1755433646688,0.2423,4546.2,4545.6,0.5214]
[1755433646884,1.1935,4546.1,4546.0,0.7637]
[1755433647089,1.4358,4546.1,4546.0,0.8263]
[1755433647289,1.4358,4546.1,4546.0,1.1883]
[1755433648990,3.2078,4546.5,4546.0,0.8834]
[1755433649191,3.2078,4546.5,4546.1,1.1883]
[1755433649192,0.8052,4546.2,4546.1,1.1883]
[1755433649383,0.2423,4546.3,4546.2,0.6669]
[1755433649589,0.4986,4546.3,4546.2,1.1883]
[1755433650193,1.201,4546.3,4546.2,1.1883]
[1755433650792,1.4358,4546.3,4546.2,1.1883]
[1755433651893,0.4986,4546.3,4546.2,1.1883]
[1755433652689,1.4358,4546.3,4546.2,1.1883]
[1755433659499,0.2423,4546.7,4546.3,0.2423]
[1755433659798,0.8052,4546.7,4546.6,1.0255]
[1755433660001,0.8052,4546.7,4546.6,0.7832]
[1755433660204,1.4358,4546.7,4546.6,0.7832]
[1755433660498,1.4358,4546.7,4545.8,3.2078]
[1755433660499,1.4358,4545.9,4545.8,3.2078]
[1755433660691,31.686,4547.6,4545.2,3.3731]
[1755433660692,0.5629,4545.3,4545.2,3.3731]
[1755433660893,1.4358,4545.3,4545.2,4.3961]
[1755433663105,1.4358,4545.3,4545.2,24.4611]
[1755433665302,1.4358,4545.3,4545.2,3.2078]
[1755433666102,1.4358,4544.6,4544.5,3.2078]
[1755433667303,0.398,4544.1,4544.0,20.064]
[1755433667507,1.4249,4544.1,4544.0,20.8472]
[1755433668201,0.4072,4544.1,4544.0,20.8472]
[1755433668401,0.2429,4544.5,4544.0,20.6471]
[1755433668706,0.8242,4544.5,4544.4,1.1707]
[1755433668906,0.1597,4544.5,4544.4,1.1707]
[1755433669203,0.4026,4544.5,4544.4,1.1707]
[1755433669504,0.2429,4544.7,4544.6,0.5043]
[1755433669806,0.4883,4544.7,4544.6,1.1707]
[1755433669996,0.8158,4544.7,4544.6,1.1707]
[1755433671707,1.4371,4545.6,4545.5,0.8597]
[1755433672002,1.4371,4545.6,4545.2,20.065]
[1755433672194,0.5788,4545.3,4545.2,20.8251]
[1755433672400,1.4371,4545.3,4545.2,20.8251]
[1755433673603,0.8583,4545.2,4544.9,3.2078]
[1755433673808,1.4371,4545.0,4544.9,24.4435]
[1755433674610,0.2429,4545.2,4545.0,0.311]
[1755433674909,0.2429,4545.2,4544.9,23.2728]
[1755433674910,1.4371,4545.2,4545.1,1.1707]
[1755433675302,1.4371,4545.2,4545.1,1.0088]
[1755433675804,1.4371,4545.2,4545.1,1.0711]
[1755433676005,1.4371,4545.2,4545.1,1.1707]
[1755433677110,0.5704,4545.2,4545.1,1.1707]
[1755433677609,0.8158,4545.2,4545.1,1.1707]
[1755433677811,1.0671,4545.2,4545.1,1.1707]
[1755433678012,1.4371,4545.2,4545.1,1.1707]
[1755433678707,1.4371,4545.2,4545.1,0.4047]
[1755433679012,3.2078,4546.2,4545.1,0.4047]
[1755433679013,1.0671,4546.1,4546.0,0.4047]
[1755433679312,1.4371,4546.1,4546.0,0.7601]
[1755433679806,0.5788,4545.5,4545.4,3.6125]
[1755433680004,1.4371,4545.5,4545.4,24.2806]
[1755433680401,0.5788,4545.2,4545.1,20.4194]
[1755433680603,1.4371,4545.2,4545.1,20.8241]
[1755433680805,1.4371,4545.2,4545.1,21.0728]
[1755433681012,1.4371,4545.2,4545.1,21.2347]
[1755433681214,1.4371,4545.2,4545.1,21.1724]
[1755433681406,1.4371,4545.2,4545.1,20.8241]
[1755433683316,1.4371,4545.2,4545.1,21.0728]
[1755433685518,1.4371,4545.2,4545.1,21.2347]
[1755433694020,3.2078,4546.4,4545.1,20.9237]
[1755433694327,0.3275,4545.4,4545.3,1.1087]
[1755433694527,1.1858,4545.4,4545.3,21.2311]
[1755433694921,1.4371,4545.4,4545.3,21.2311]
[1755433695123,1.0671,4545.4,4545.3,21.2311]
[1755433695626,1.4371,4545.4,4545.3,21.2311]
[1755433699228,0.8158,4545.4,4545.3,21.2311]
[1755433699430,0.648,4545.4,4545.3,21.2311]
[1755433701423,0.4026,4545.4,4545.3,21.2311]
[1755433702028,0.6569,4545.4,4545.3,21.2311]
[1755433703033,1.219,4545.4,4545.3,21.2311]
[1755433703533,1.4626,4545.4,4545.3,21.2311]
[1755433704331,1.4626,4545.4,4545.3,1.1711]
[1755433704536,1.4626,4545.4,4545.3,21.2291]
[1755433705437,0.5814,4545.0,4544.9,3.9785]
[1755433705738,1.4851,4545.0,4544.9,24.2908]
[1755433705944,1.4851,4545.0,4544.9,24.4533]
[1755433706438,1.4851,4545.0,4544.9,24.3908]
[1755433706836,1.4851,4545.0,4544.9,4.3328]
[1755433707038,0.5814,4544.2,4544.1,0.7707]
[1755433707234,1.4851,4544.2,4544.1,21.082]
[1755433707935,0.5814,4544.0,4543.9,3.6136]
[1755433708131,1.4851,4544.0,4543.9,24.0355]
[1755433710229,0.5814,4543.5,4543.4,3.2078]
[1755433710431,1.4851,4543.5,4543.4,3.2078]
[1755433711132,0.5814,4543.2,4543.0,20.058]
[1755433711430,1.4851,4543.2,4543.0,20.058]
[1755433712341,1.4851,4543.2,4543.1,0.46395022]
[1755433712840,1.4851,4543.2,4543.1,0.86975022]
[1755433715138,1.4851,4543.2,4543.1,1.18655022]
[1755433715434,1.4851,4543.2,4543.1,1.28655022]
[1755433717143,1.4851,4543.2,4543.1,0.09905022]
[1755433717345,1.4851,4543.2,4543.1,0.86975022]
[1755433718840,1.4851,4543.2,4543.1,1.28655022]
[1755433719443,1.0949,4543.2,4543.1,1.28655022]
[1755433720363,1.4851,4543.2,4543.1,1.28655022]
[1755433720544,1.4851,4543.2,4543.1,20.16105022]
[1755433721143,1.4851,4543.2,4543.1,0.09905022]
[1755433721445,1.4851,4543.2,4543.1,0.86975022]
[1755433722749,1.4851,4543.2,4543.1,0.33855022]
[1755433724249,1.4851,4543.2,4543.1,0.50485022]
[1755433724454,1.4851,4543.2,4543.1,0.86975022]
[1755433724750,0.8406,4543.2,4543.1,1.28655022]
[1755433724949,0.597,4543.2,4543.1,1.28655022]
[1755433725746,0.2592,4544.1,4543.2,0.3649]
[1755433725938,0.6445,4544.0,4543.4,0.6817]
[1755433726144,1.0949,4543.9,4543.8,0.6601]
[1755433726444,1.4851,4543.9,4543.8,1.0875]
[1755433726643,1.4851,4543.9,4543.8,1.025]
[1755433727251,1.4851,4543.9,4543.8,0.7707]
[1755433727641,0.6032,4543.8,4543.6,20.062]
[1755433727850,0.8119,4543.7,4543.6,20.4218]
[1755433728047,1.4203,4543.7,4543.6,20.8363]
[1755433728349,1.4203,4543.7,4543.6,0.7743]
[1755433728539,1.4203,4543.7,4543.5,20.062]
[1755433728748,0.6084,4543.6,4543.5,20.062]
[1755433729050,1.4203,4543.6,4543.5,20.062]
[1755433729652,1.4203,4543.6,4543.5,20.4218]
[1755433730667,1.4203,4543.6,4543.5,20.062]
[1755433732250,1.4203,4543.6,4543.2,3.2078]
[1755433732553,0.5775,4542.8,4542.1,0.2586]
[1755433732754,1.4203,4542.2,4542.1,0.4145]
[1755433733140,1.4203,4542.2,4542.1,0.7743]
[1755433733551,1.4203,4542.2,4542.1,1.3508]
[1755433737352,1.171,4542.1,4542.0,3.5255]
[1755433737653,1.171,4542.1,4542.0,3.7788]
[1755433737952,1.4203,4542.1,4542.0,4.5586]
[1755433738753,1.4203,4542.1,4542.0,3.6223]
[1755433738955,1.4203,4542.1,4542.0,4.4021]
[1755433739457,1.4203,4542.1,4542.0,4.5586]
[1755433741655,1.4203,4542.1,4542.0,3.2078]
[1755433742854,0.5775,4542.1,4541.4,3.2078]
[1755433743052,1.4203,4541.5,4541.4,24.3027]
[1755433743248,1.4203,4541.5,4541.4,24.6206]
[1755433752460,0.8022,4541.5,4541.4,24.6206]
[1755433752762,1.4203,4541.5,4541.4,24.6206]
[1755433754960,1.0515,4541.5,4541.4,24.6206]
[1755433755166,0.8171,4541.5,4541.4,24.6206]
[1755433755462,1.0515,4541.5,4541.4,24.6206]
[1755433755665,1.4203,4541.5,4541.4,24.6206]
[1755433757166,1.4203,4541.5,4541.4,24.4641]
[1755433757362,1.4203,4541.5,4541.4,24.3027]
[1755433757569,1.4203,4541.5,4541.4,24.6211]
[1755433758765,0.4731,4542.2,4541.4,24.6211]
[1755433758970,0.6071,4542.3,4541.5,0.6267]
[1755433759169,0.6071,4542.3,4541.6,20.062]
[1755433759368,1.4191,4541.8,4541.7,1.3622]
[1755433760567,0.5751,4541.8,4541.4,23.2698]
[1755433760773,1.4191,4541.7,4541.6,0.6468]
[1755433761071,1.4191,4541.7,4541.6,1.031]
[1755433761768,1.0482,4541.7,4541.6,1.3622]
[1755433761968,1.4191,4541.7,4541.6,1.3622]
[1755433762668,1.4191,4541.7,4541.6,21.4232]
[1755433763772,0.812,4541.7,4541.6,21.4232]
[1755433763972,1.4191,4541.7,4541.6,21.4232]
[1755433764771,0.3709,4542.3,4541.7,0.3842]
[1755433764970,3.6809,4542.4,4541.4,3.2078]
[1755433764971,1.0482,4542.2,4542.1,0.4043]
[1755433765170,1.0482,4542.2,4542.1,1.3622]
[1755433765171,0.5755,4542.2,4542.1,1.3622]
[1755433766772,0.8117,4542.2,4542.1,1.3622]
[1755433768083,0.3709,4542.4,4542.2,1.3622]
[1755433768084,0.4731,4542.3,4542.2,1.3622]
[1755433768271,1.4191,4542.3,4542.2,21.4212]
[1755433769274,1.4191,4542.3,4542.2,21.0168]
[1755433769475,1.4191,4542.3,4542.2,20.4633]
[1755433769874,1.4191,4542.3,4542.2,21.4212]
[1755433770376,1.4191,4542.3,4542.2,21.2593]
[1755433770571,1.4191,4542.3,4542.2,20.8475]
[1755433771670,1.4191,4542.2,4542.1,20.4623]
[1755433771874,1.4191,4542.2,4542.1,21.2509]
[1755433772073,1.4191,4542.2,4542.1,21.4202]
[1755433772575,1.0482,4542.2,4542.1,21.4202]
[1755433773378,1.4191,4542.2,4542.1,21.4202]
[1755433775775,0.3709,4542.7,4542.1,20.6316]
[1755433775982,1.4191,4542.6,4542.5,0.978]
[1755433776285,1.4191,4542.6,4542.5,1.3622]
[1755433782292,0.2369,4543.0,4542.5,1.3622]
[1755433782494,0.8113,4543.4,4543.3,0.4043]
[1755433782700,0.8113,4543.4,4543.3,1.031]
[1755433782997,1.4191,4543.4,4543.3,0.7885]
[1755433783188,1.4191,4543.4,4543.3,0.4043]
[1755433783395,1.4191,4543.4,4543.1,0.5461]
[1755433783595,0.5751,4543.4,4543.1,0.3842]
[1755433783898,1.4191,4543.2,4542.4,3.592]
[1755433784095,0.812,4542.6,4542.5,20.4573]
[1755433784291,1.4191,4542.6,4542.5,21.2533]
[1755433784497,1.4191,4542.6,4542.5,21.4152]
[1755433785488,1.0482,4542.6,4542.5,21.4152]
[1755433785893,1.4191,4542.6,4542.5,21.4152]
[1755433790599,0.8117,4542.6,4542.5,21.4152]
[1755433790993,0.6436,4542.6,4542.5,21.4152]
[1755433791190,0.7896,4543.2,4543.1,0.4259]
[1755433791396,1.0704,4543.2,4543.1,1.3602]
[1755433791590,1.4558,4543.2,4543.1,1.3602]
[1755433793499,1.0704,4543.2,4543.1,1.3602]
[1755433793696,0.5774,4543.2,4543.1,1.3602]
[1755433793892,0.5678,4544.0,4543.9,0.3408]
[1755433794097,1.2081,4544.0,4543.9,1.3597]
[1755433794601,1.4558,4544.0,4543.9,1.3597]
[1755433797902,1.4558,4544.0,4543.9,1.1984]
[1755433800903,1.4558,4544.0,4543.9,0.7865]
[1755433801098,1.4558,4544.0,4543.8,20.048]
[1755433801404,1.4558,4543.6,4543.5,3.2078]
[1755433801599,1.4558,4543.6,4543.5,3.9943]
[1755433801800,1.4558,4543.6,4543.5,4.3942]
[1755433802893,1.4558,4543.6,4543.5,3.2078]
[1755433806505,1.4558,4543.6,4543.5,3.6279]
[1755433806707,1.4558,4543.6,4543.5,3.9943]
[1755433807810,1.4558,4543.6,4543.5,4.4062]
[1755433808011,1.4558,4543.6,4543.5,4.5675]
[1755433809205,1.2081,4544.1,4544.0,0.5934]
[1755433809412,1.4558,4544.1,4544.0,1.3597]
[1755433810106,1.4558,4544.1,4544.0,1.1984]
[1755433810708,1.4558,4544.1,4544.0,0.7865]
[1755433813814,1.4558,4544.1,4544.0,1.0251]
[1755433814006,1.4558,4544.1,4544.0,0.7865]
[1755433814711,1.4558,4544.1,4543.5,23.6142]
[1755433815016,1.4558,4543.6,4543.5,24.2411]
[1755433815203,1.4558,4543.6,4543.5,23.2478]
[1755433815404,1.4558,4543.6,4543.5,3.5742]
[1755433815615,1.4558,4543.6,4543.5,3.9943]
[1755433816016,1.4558,4543.6,4543.5,3.4604]
[1755433816206,1.4558,4543.6,4543.5,3.2078]
[1755433817316,1.4558,4543.6,4543.5,4.5675]
[1755433819313,1.4558,4543.6,4543.5,3.9943]
[1755433820626,1.4558,4543.6,4543.5,3.6279]
[1755433821120,1.4558,4543.6,4543.5,3.2078]
[1755433821517,1.4558,4543.6,4543.5,4.0126]
[1755433821723,1.4558,4543.6,4543.5,4.6026]
[1755433823918,1.4558,4543.6,4543.5,1.3948]
[1755433828822,3.2078,4544.1,4543.5,1.3948]
[1755433829016,1.0693,4544.0,4543.9,0.6042]
[1755433829222,1.4235,4544.0,4543.9,1.3945]
[1755433831329,0.4019,4544.0,4543.9,0.6042]
[1755433831517,1.4235,4544.0,4543.9,0.8597]
[1755433831921,1.4235,4544.0,4543.9,1.3945]
[1755433835820,0.5654,4544.0,4543.2,0.3735]
[1755433836019,0.8334,4543.4,4543.3,1.021]
[1755433836226,1.1876,4543.4,4543.3,1.3945]
[1755433837526,1.4235,4543.4,4543.3,1.3945]
[1755433838719,1.4235,4543.4,4543.3,0.9777]
[1755433838926,1.4235,4543.4,4543.3,1.3945]
[1755433843829,1.4235,4543.4,4543.3,0.9777]
[1755433844029,0.2451,4543.3,4543.0,3.2078]
[1755433844331,1.4235,4543.1,4543.0,4.0126]
[1755433844725,0.166,4542.8,4542.7,0.5445]
[1755433844932,1.4235,4542.8,4542.7,1.0603]
[1755433845231,1.4235,4542.8,4542.7,1.2216]
[1755433845619,1.4235,4542.8,4542.7,0.4313]
[1755433845824,1.4235,4542.8,4542.7,0.8048]
[1755433847329,1.4235,4542.8,4542.7,0.9661]
[1755433847531,1.4235,4542.8,4542.7,1.3945]
[1755433861936,1.4235,4542.8,4542.7,0.9777]
[1755433862135,1.4235,4542.8,4542.7,0.8048]
[1755433863141,1.4235,4542.8,4542.7,0.9727]
[1755433863440,1.4235,4542.8,4542.7,1.3852]
[1755433864842,0.2359,4542.8,4542.7,1.3852]
[1755433865141,3.2078,4543.6,4542.7,0.5988]
[1755433865441,1.4568,4543.5,4543.4,1.3719]
[1755433866141,0.4957,4543.9,4543.8,1.21]
[1755433866446,1.2045,4543.9,4543.8,1.3719]
[1755433866632,1.0801,4543.9,4543.8,1.3719]
[1755433866832,3.2078,4544.1,4543.8,1.3719]
[1755433867033,0.1,4544.2,4544.1,0.998]
[1755433867244,0.1,4544.2,4544.1,4.5797]
[1755433867439,3.2078,4545.3,4545.0,1.3719]
[1755433867740,0.4259,4544.8,4544.7,20.2796]
[1755433868039,1.4568,4544.8,4544.7,1.3719]
[1755433869741,3.2297,4545.8,4544.9,0.7864]
[1755433869742,0.8724,4545.6,4544.9,0.7864]
[1755433870044,1.4568,4545.6,4545.5,1.3719]
[1755433871541,1.4568,4545.6,4545.5,0.7919]
[1755433871936,1.4568,4545.6,4545.5,1.0425]
[1755433872340,1.0801,4545.6,4545.5,1.0425]
[1755433872636,1.4568,4545.6,4545.5,1.3719]
[1755433873348,1.0801,4545.6,4545.5,1.3719]
[1755433873748,1.4568,4545.6,4545.5,1.3719]
[1755433876354,0.8278,4545.6,4545.5,1.3719]
[1755433876851,1.2045,4545.6,4545.5,1.3719]
[1755433877445,1.4568,4545.6,4545.5,1.3719]
[1755433878043,0.5942,4546.2,4545.5,0.5855]
[1755433878243,1.1616,4545.7,4545.6,1.3915]
[1755433878554,1.3999,4545.7,4545.6,1.3915]
[1755433880042,0.5674,4545.3,4545.2,1.1465]
[1755433880249,1.3999,4545.3,4545.2,1.3915]
[1755433884265,1.3999,4545.3,4545.2,0.4283]
[1755433884451,1.3999,4545.3,4545.2,1.223]
[1755433884755,1.3999,4545.3,4545.2,0.4283]
[1755433884953,1.3999,4545.3,4545.2,0.8172]
[1755433885651,1.3999,4545.3,4545.2,0.4283]
[1755433886149,1.3999,4545.3,4545.1,3.2078]
[1755433886343,1.3999,4545.2,4545.1,3.2078]
[1755433886551,1.3999,4545.2,4545.1,3.6361]
[1755433886752,1.3999,4545.2,4545.1,4.5993]
[1755433887051,1.1606,4545.8,4545.7,0.2595]
[1755433887254,1.3999,4545.8,4545.7,1.3915]
[1755433888045,1.3999,4545.8,4545.7,1.2307]
[1755433889451,0.3293,4545.3,4545.2,1.3915]
[1755433889654,1.3999,4545.3,4545.2,1.3915]
[1755433889849,1.045,4545.3,4545.2,1.3915]
[1755433890050,0.6414,4545.3,4545.2,1.3915]
[1755433890250,0.4021,4545.3,4545.2,1.3915]
[1755433890853,0.5942,4545.6,4545.2,0.5968]
[1755433890854,0.3549,4545.6,4545.2,0.5968]
[1755433891056,0.8069,4545.5,4545.4,0.5968]
[1755433891254,0.8069,4545.5,4545.4,1.3918]
[1755433891858,1.045,4545.5,4545.4,0.8172]
[1755433892058,1.045,4545.5,4545.4,1.3918]
[1755433892250,1.3999,4545.5,4545.4,1.3918]
[1755433894161,0.593,4546.4,4546.3,0.2595]
[1755433894357,0.9223,4546.4,4546.3,0.8172]
[1755433894654,0.5674,4546.4,4546.3,1.3918]
[1755433894856,0.8057,4546.4,4546.3,1.3918]
[1755433895053,3.2078,4546.5,4546.3,0.5968]
[1755433895252,0.2383,4546.7,4546.5,0.795]
[1755433895449,1.1618,4546.7,4546.6,1.3918]
[1755433895656,1.3999,4546.7,4546.6,1.3918]
[1755433896953,0.8325,4546.6,4546.3,0.3889]
[1755433897249,1.3999,4546.5,4546.4,0.8172]
[1755433897554,1.3999,4546.5,4546.4,1.3918]
[1755433898853,1.045,4546.5,4546.4,1.3918]
[1755433899060,0.5676,4546.5,4546.4,1.3918]
[1755433899257,0.4021,4546.5,4546.4,1.3918]
[1755433899560,0.758,4546.8,4546.7,0.5968]
[1755433899755,1.1616,4546.8,4546.7,1.3918]
[1755433899955,1.3999,4546.8,4546.7,4.5996]
[1755433900662,3.2078,4547.8,4546.7,3.8046]
[1755433900865,0.5674,4546.9,4546.8,1.3918]
[1755433901155,1.3999,4546.9,4546.8,1.3918]
[1755433902161,1.3999,4546.9,4546.7,3.2078]
[1755433902462,1.3999,4546.8,4546.7,4.025]
[1755433902659,1.3999,4546.8,4546.7,4.5996]
[1755433906259,1.3999,4546.8,4546.7,3.6361]
[1755433906567,1.3999,4546.8,4546.7,4.025]
[1755433909660,1.3999,4546.8,4546.7,3.2078]
[1755433909860,1.3999,4546.8,4546.7,3.7471]
[1755433910062,1.3999,4546.8,4546.7,4.5691]
[1755433914070,0.8069,4546.8,4546.7,4.5691]
[1755433914968,1.1879,4546.8,4546.7,4.5691]
[1755433915170,0.5026,4546.8,4546.7,4.5691]
[1755433915571,1.4808,4546.8,4546.7,3.2078]
[1755433915769,1.4808,4546.8,4546.7,4.4006]
[1755433916663,1.4808,4546.8,4546.7,4.5609]
[1755433923980,0.2424,4547.1,4546.8,0.5427]
[1755433924169,1.4808,4547.1,4547.0,1.3531]
[1755433928177,1.4808,4547.1,4547.0,1.1918]
[1755433929179,1.4808,4547.1,4547.0,1.3531]
[1755433931782,1.4808,4547.1,4547.0,1.1918]
[1755433932081,1.4808,4547.1,4547.0,1.3531]
[1755433933481,1.4808,4547.1,4547.0,0.7862]
[1755433934279,1.4808,4547.1,4547.0,1.0315]
[1755433934983,1.4808,4547.1,4547.0,1.3531]
[1755433937385,1.0998,4547.1,4547.0,1.3531]
[1755433937888,1.4631,4547.1,4547.0,1.3531]
[1755433939380,3.2078,4548.3,4547.2,1.3471]
[1755433939381,0.2532,4547.3,4547.2,1.3471]
[1755433939786,1.4355,4547.6,4547.5,0.9891]
[1755433940081,1.4355,4547.6,4547.5,1.3471]
[1755433942485,0.8522,4548.1,4548.0,0.2464]
[1755433942687,1.75559236,4548.1,4548.0,0.4062]
[1755433942892,2.00829236,4548.1,4548.0,1.183]
[1755433943593,1.4355,4548.1,4548.0,1.1857]
[1755433943889,1.4355,4548.1,4548.0,1.3471]
[1755433944485,3.2078,4548.3,4548.0,1.3471]
[1755433944691,0.8365,4548.2,4548.1,1.3471]
[1755433944890,1.1998,4548.2,4548.1,1.3471]
[1755433945291,1.4355,4548.2,4548.1,1.3471]
[1755433947087,0.5838,4548.2,4548.1,1.3471]
[1755433947287,0.8365,4548.2,4548.1,1.3471]
[1755433947492,1.4355,4548.2,4548.1,1.3471]
[1755433948405,1.0722,4548.2,4548.1,1.3471]
[1755433949106,0.5663,4548.5,4548.4,0.5703]
[1755433949288,0.5663,4548.5,4548.4,1.3471]
[1755433949690,1.4355,4548.5,4548.4,1.3471]
[1755433950197,0.4145,4548.5,4548.4,1.3471]
[1755433950394,1.4355,4548.5,4548.4,1.3471]
[1755433952490,0.3306,4548.3,4548.2,3.2078]
[1755433952804,0.8195,4548.3,4548.2,4.5549]
[1755433953002,1.4355,4548.8,4548.7,0.7642]
[1755433953197,1.4355,4548.8,4548.7,0.4062]
[1755433953500,0.1693,4548.4,4548.3,0.5178]
[1755433953700,0.5663,4548.4,4548.3,0.1598]
[1755433953900,0.9296,4548.4,4548.3,0.1598]
[1755433954101,1.4355,4548.4,4548.3,1.3471]
[1755433954294,0.3306,4548.4,4548.3,0.9891]
[1755433954491,1.1998,4548.4,4548.3,0.9891]
[1755433954696,1.4355,4548.4,4548.3,0.9891]
[1755433954897,1.4355,4548.4,4548.3,1.3471]
[1755433955302,1.4355,4548.4,4548.2,3.2078]
[1755433955502,1.4355,4548.3,4548.2,3.8714]
[1755433955703,1.4355,4548.3,4548.2,4.1969]
[1755433956005,1.4355,4548.3,4548.2,4.5549]
[1755433956400,0.8365,4548.6,4548.5,0.3239]
[1755433956605,1.4355,4548.6,4548.5,1.3471]
[1755433957002,0.5663,4548.4,4548.3,0.7642]
[1755433957307,1.4355,4548.4,4548.3,1.3471]
[1755433957994,0.5663,4548.4,4548.2,3.2078]
[1755433958197,1.4355,4548.3,4548.2,3.614]
[1755433958398,1.4355,4548.3,4548.2,3.4542]
[1755433959603,1.4355,4548.3,4548.2,3.2078]
[1755433960301,1.4355,4548.3,4548.2,3.5658]
[1755433960909,1.4355,4548.3,4548.2,4.5549]
[1755433963915,1.4355,4548.3,4548.2,4.3935]
[1755433965812,1.4355,4548.3,4548.2,4.5549]
[1755433966706,1.4355,4548.3,4548.2,4.1361]
[1755433966908,1.4355,4548.3,4548.2,3.972]
[1755433967409,1.44036319,4548.3,4548.2,3.972]
[1755433968307,1.44036319,4548.3,4548.2,4.5586]
[1755433968709,0.00486319,4548.3,4548.2,4.5586]
[1755433968909,0.24026319,4548.3,4548.2,4.5586]
[1755433969212,1.42716319,4548.3,4548.2,4.5586]
[1755433974214,1.42716319,4548.3,4548.2,3.2078]
[1755433975015,1.42716319,4548.3,4548.2,3.7427]
[1755433975216,1.42716319,4548.3,4548.2,3.9814]
[1755433975512,1.42716319,4548.3,4548.2,4.2412]
[1755433975918,1.42716319,4548.3,4548.2,4.402]
[1755433976117,0.00486319,4548.3,4548.2,3.9814]
[1755433976421,1.42716319,4548.3,4548.2,4.568]
[1755433976921,0.24026319,4548.3,4548.2,4.568]
[1755433977521,1.42716319,4548.3,4548.2,4.568]
[1755433979623,0.00486319,4548.3,4548.2,4.568]
[1755433980019,0.2353,4549.0,4548.3,1.09879]
[1755433980218,0.4707,4549.0,4548.9,1.3602]
[1755433980524,1.4223,4549.0,4548.9,21.3352]
[1755433981017,0.5792,4549.0,4548.9,20.1464]